fUSD/lending_fUSD_20251019
["ID","MTS","AMOUNT","RATE_DAILY","PERIOD"]
[391794782,1760832631918,-151.47122656,0.0002315,2]
[391794783,1760832631929,-166.47344729,0.000232,2]
[391794784,1760832631940,-13.04532615,0.00023213,2]
[391794785,1760832631962,-286.95467385,0.00023213,2]
[391794786,1760832631972,-687.01434781,0.00023299,2]
[391794787,1760832632010,-512.98565219,0.00023299,2]
[391794788,1760832632020,-1991.0,0.000233,2]
[391794789,1760832632029,-2059.25,0.000233,5]
[391794790,1760832632039,-150.0,0.000233,2]
[391794791,1760832632049,-300.0,0.00024931,2]
[391794792,1760832632058,-300.0,0.00024931,2]
[391794793,1760832632071,-500.0,0.00024932,2]
[391794794,1760832632083,-500.0,0.00024999,2]
[391794795,1760832632094,-300.0,0.0002552,2]
[391794796,1760832632104,-475.74147678,0.0002678,2]
[391794797,1760832632115,-150.0,0.00028497,2]
[391794798,1760832632126,-150.0,0.00029145,7]
[391794799,1760832632136,-150.0,0.00029145,7]
[391794800,1760832632146,-150.0,0.00029145,7]
[391794801,1760832632155,-500.0,0.00029436,5]
[391794802,1760832632165,-500.0,0.00029436,5]
[391794803,1760832632174,-500.0,0.00029436,5]
[391794804,1760832632183,-500.0,0.00029436,2]
[391794805,1760832632192,-500.0,0.00029436,5]
[391794806,1760832632201,-500.0,0.00029436,5]
[391794807,1760832632210,-377.61385288,0.00029436,5]
[391794808,1760832632220,-500.0,0.00029436,5]
[391794809,1760832632230,-500.0,0.00029436,2]
[391794810,1760832632239,-151.0,0.00029669,2]
[391794811,1760832632248,-746.56762055,0.00029669,2]
[391794812,1760832632258,-9552.16786547,0.00029669,2]
[391794813,1760832632268,-277.35679052,0.00029669,2]
[391794814,1760832632281,-548.72244151,0.00029914,5]
[391794815,1760832632291,-500.75083582,0.00029914,5]
[391794816,1760832632300,-618.91544459,0.00029914,5]
[391794817,1760832632309,-5000.0,0.00029918,2]
[391794818,1760832632320,-500.0,0.00029984,5]
[391794819,1760832632329,-602.0,0.0003,120]
[391794820,1760832632339,-500.0,0.00030117,2]
[391794821,1760832632349,-648.25109293,0.00030117,2]
[391794822,1760832632358,-151.0,0.00030118,2]
[391794824,1760832632368,-200.0,0.00030118,2]
[391794825,1760832632377,-151.0,0.00030118,2]
[391794826,1760832632386,-151.0,0.00030118,2]
[391794827,1760832632395,-151.0,0.00030118,2]
[391794828,1760832632405,-151.0,0.00030118,2]
[391794829,1760832632414,-288.36442447,0.00030118,2]
[391794830,1760832632423,-151.0,0.00030118,2]
[391794831,1760832632432,-151.0,0.00030118,2]
[391794832,1760832632441,-151.0,0.00030118,2]
[391794833,1760832632451,-151.0,0.00030118,2]
[391794834,1760832632461,-151.0,0.00030118,2]
[391794835,1760832632470,-151.0,0.00030118,2]
[391794836,1760832632485,-500.0,0.00030118,2]
[391794837,1760832632495,-151.0,0.00030118,2]
[391794838,1760832632504,-151.0,0.00030118,2]
[391794839,1760832632513,-500.0,0.00030118,2]
[391794840,1760832632522,-151.0,0.00030118,2]
[391794841,1760832632531,-151.0,0.00030118,2]
[391794842,1760832632541,-500.0,0.00030118,2]
[391794843,1760832632550,-151.0,0.00030118,2]
[391794844,1760832632560,-500.0,0.00030118,2]
[391794845,1760832632569,-151.0,0.00030118,2]
[391794846,1760832632579,-151.0,0.00030118,2]
[391794847,1760832632588,-151.0,0.00030118,2]
[391794848,1760832632598,-500.0,0.00030118,2]
[391794849,1760832632608,-151.0,0.00030118,2]
[391794850,1760832632618,-151.0,0.00030118,2]
[391794851,1760832632627,-500.0,0.00030118,2]
[391794852,1760832632638,-151.0,0.00030118,2]
[391794853,1760832632647,-151.0,0.00030118,2]
[391794854,1760832632657,-500.0,0.00030118,2]
[391794855,1760832632666,-151.0,0.00030118,2]
[391794856,1760832632676,-151.0,0.00030118,2]
[391794857,1760832632686,-500.0,0.00030118,2]
[391794858,1760832632695,-151.0,0.00030118,2]
[391794859,1760832632705,-151.0,0.00030118,2]
[391794860,1760832632714,-151.0,0.00030118,2]
[391794861,1760832632724,-151.0,0.00030118,2]
[391794862,1760832632734,-151.0,0.00030118,2]
[391794863,1760832632743,-227.74,0.00030118,2]
[391794864,1760832632753,-200.0,0.00030118,2]
[391794865,1760832632763,-250.0,0.00030121,7]
[391794866,1760832632772,-156.91,0.00030128,30]
[391794867,1760832632782,-500.0,0.00030136,2]
[391794868,1760832632791,-500.0,0.00030233,5]
[391794869,1760832632800,-512.23723173,0.00030233,5]
[391794870,1760832632811,-500.0,0.00030233,5]
[391794871,1760832632820,-500.0,0.00030233,5]
[391794872,1760832632830,-500.0,0.00030233,5]
[391794873,1760832632841,-498.95818938,0.00030233,5]
[391794874,1760832632851,-200.0,0.00030244,2]
[391794875,1760832632861,-150.0,0.00030299,2]
[391794876,1760832632870,-500.0,0.0003035,3]
[391794877,1760832632880,-500.77926386,0.0003035,5]
[391794878,1760832632891,-500.0,0.0003041,2]
[391794879,1760832632901,-1132.43,0.00030586,2]
[391794880,1760832632910,-1945.56370637,0.00030605,2]
[391794881,1760832632919,-168.0,0.00030661,2]
[391794882,1760832632929,-168.0,0.00030681,2]
[391794883,1760832632938,-500.0,0.00030684,2]
[391794884,1760832632948,-673.2,0.00030705,2]
[391794885,1760832632958,-1000.0,0.00030746,2]
[391794886,1760832632969,-168.0,0.00030759,2]
[391794887,1760832632979,-1251.264,0.00030759,27]
[391794888,1760832632989,-151.47122655,0.00030858,2]
[391794889,1760832632999,-250.0,0.00030858,2]
[391794890,1760832633008,-168.0,0.00030873,2]
[391794891,1760832633018,-168.0,0.00030884,2]
[391794892,1760832633030,-533.975432,0.00030898,3]
[391794893,1760832633039,-500.0,0.00030958,2]
[391794894,1760832633049,-1055.58686686,0.00031167,2]
[391794895,1760832633059,-3073.68,0.00031187,2]
[391794896,1760832633069,-161.83329338,0.0003122,2]
[391794897,1760832633079,-500.0,0.00031232,2]
[391794898,1760832633089,-168.0,0.00031305,2]
[391794899,1760832633099,-732.39137331,0.00031427,2]
[391794900,1760832633108,-168.0,0.00031462,2]
[391794901,1760832633117,-500.0,0.00031506,2]
[391794902,1760832633127,-168.0,0.00031637,2]
[391794903,1760832633136,-500.0,0.0003178,2]
[391794904,1760832633147,-168.0,0.00031819,2]
[391794905,1760832633156,-168.0,0.00031899,2]
[391794906,1760832633165,-571.75,0.00032054,2]
[391794907,1760832633175,-876.43139734,0.00032091,2]
[391794908,1760832633184,-168.0,0.00032102,2]
[391794909,1760832633193,-2546.0,0.00032134,2]
[391794910,1760832633206,-150.0,0.00032266,120]
[391794911,1760832633216,-10375.55763864,0.00032293,2]
[391794912,1760832633226,-169.2238515,0.00032297,2]
[391794913,1760832633235,-415.905,0.000323,10]
[391794914,1760832633244,-5000.0,0.000323,2]
[391794915,1760832633253,-248.65031087,0.000323,15]
[391794916,1760832633262,-160.5894461,0.000323,4]
[391794917,1760832633272,-10375.55763856,0.00032312,2]
[391794918,1760832633282,-169.22385144,0.00032321,2]
[391794919,1760832633291,-10375.55763856,0.00032331,2]
[391794920,1760832633301,-169.22385144,0.00032345,2]
[391794921,1760832633310,-10375.55763856,0.0003235,2]
[391794922,1760832633320,-405.6,0.00032358,3]
[391794923,1760832633330,-169.22385144,0.00032369,2]
[391794924,1760832633339,-10375.55763856,0.00032369,2]
[391794925,1760832633350,-1305.71,0.00032377,120]
[391794926,1760832633361,-17374.1946449,0.0003238,3]
[391794927,1760832633371,-150.0,0.00032384,7]
[391794928,1760832633381,-151.0,0.00032387,7]
[391794929,1760832633390,-151.0,0.00032387,7]
[391794930,1760832633404,-618.99,0.00032389,2]
[391794931,1760832633413,-500.0,0.00032389,2]
[391794932,1760832633422,-860.76,0.00032389,2]
[391794933,1760832633431,-500.0,0.00032389,2]
[391794934,1760832633440,-500.0,0.00032389,2]
[391794935,1760832633450,-500.0,0.00032389,2]
[391794936,1760832633460,-426.76,0.00032389,2]
[391794937,1760832633469,-500.0,0.00032389,2]
[391794938,1760832633478,-300.0,0.00032389,2]
[391794939,1760832633488,-500.0,0.00032389,2]
[391794940,1760832633497,-500.0,0.00032389,2]
[391794941,1760832633508,-637.21403337,0.00032389,2]
[391794942,1760832633517,-214.47215523,0.00032389,2]
[391794943,1760832633527,-270.232155,0.00032389,2]
[391794944,1760832633536,-542.00605044,0.00032389,2]
[391794945,1760832633548,-500.0,0.00032389,2]
[391794946,1760832633557,-500.0,0.00032389,2]
[391794947,1760832633567,-500.0,0.00032389,2]
[391794948,1760832633576,-500.0,0.00032389,2]
[391794949,1760832633585,-500.0,0.00032389,2]
[391794950,1760832633595,-500.0,0.00032389,2]
[391794951,1760832633609,-500.0,0.00032389,2]
[391794952,1760832633618,-1541.81,0.00032389,2]
[391794953,1760832633627,-1652.45,0.00032389,2]
[391794954,1760832633637,-500.0,0.00032389,2]
[391794955,1760832633646,-151.0,0.0003239,30]
[391794956,1760832633657,-103076.51905092,0.0003239,3]
[391794957,1760832633757,-27045.57377488,0.0003239,3]
[391794958,1760832633779,-7928.2772015,0.0003239,3]
[391794967,1760832637904,-10375.55763856,0.00032389,2]
[391794968,1760832637914,-12764.1390317,0.0003239,3]
[391794969,1760832637923,-169.22385144,0.00032393,2]
[391794970,1760832637933,-4668.2879891,0.00032397,2]
[391794971,1760832637943,-1621.7681124,0.00032397,2]
[391794973,1760832637952,-151.0,0.00032399,2]
[391794975,1760832637962,-490.0,0.00032399,2]
[391794977,1760832637971,-500.0,0.00032399,2]
[391794979,1760832637981,-999.0,0.00032399,120]
[391794981,1760832637990,-1000.0,0.00032399,2]
[391794983,1760832637999,-947.0,0.000324,5]
[391794985,1760832638009,-57124.42275225,0.000324,4]
[391794987,1760832638020,-2112.08527117,0.000324,4]
[391794989,1760832638031,-636.88586202,0.000324,4]
[391795172,1760832639968,-614029.253343,0.000324,4]
[391795174,1760832639979,-2400.87979816,0.000324,4]
[391795176,1760832639990,-966.85019869,0.000324,4]
[391795178,1760832640001,-1966.29999897,0.000324,4]
[391795180,1760832640013,-861.95739382,0.000324,4]
[391795182,1760832640022,-1286.64260618,0.000324,4]
[391795187,1760832640048,-37638.74557956,0.000324,4]
[391795190,1760832640057,-150.45,0.000324,30]
[391795193,1760832640066,-7148.43,0.000324,2]
[391795196,1760832640076,-1333.68,0.000324,2]
[391795198,1760832640085,-79067.56420778,0.000324,2]
[391795201,1760832640094,-486.75092208,0.000324,2]
[391795204,1760832640103,-2500.0,0.00032412,7]
[391795207,1760832640112,-169.22385144,0.00032417,2]
[391795210,1760832640122,-2500.0,0.00032421,7]
[391795213,1760832640131,-2500.0,0.0003243,7]
[391795216,1760832640140,-486.75092208,0.00032433,2]
[391795219,1760832640148,-2500.0,0.00032438,7]
[391795222,1760832640157,-2500.0,0.00032438,7]
[391795225,1760832640167,-169.22385144,0.00032441,2]
[391795228,1760832640175,-2500.0,0.00032447,7]
[391795231,1760832640185,-2500.0,0.00032447,7]
[391795234,1760832640194,-2500.0,0.00032447,7]
[391795237,1760832640203,-252.776,0.00032447,7]
[391795240,1760832640213,-168.0,0.00032453,2]
[391795243,1760832640222,-2500.0,0.00032456,7]
[391795246,1760832640232,-2500.0,0.00032456,7]
[391795249,1760832640242,-2500.0,0.00032456,7]
[391795252,1760832640251,-2500.0,0.00032465,7]
[391795255,1760832640260,-2500.0,0.00032465,7]
[391795257,1760832640269,-2500.0,0.00032465,7]
[391795260,1760832640278,-2500.0,0.00032465,7]
[391795263,1760832640287,-486.75092208,0.00032465,2]
[391795267,1760832640303,-374.81355327,0.00032465,2]
[391795269,1760832640312,-5759.1798379,0.00032465,2]
[391795271,1760832640322,-1704.54329276,0.00032465,2]
[391795273,1760832640334,-169.22385144,0.00032465,2]
[391795275,1760832640343,-30061.0,0.00032466,2]
[391795277,1760832640353,-1000.0,0.0003247,2]
[391795279,1760832640362,-1000.0,0.0003247,2]
[391795281,1760832640373,-643.33922256,0.00032473,5]
[391795283,1760832640383,-500.0,0.00032473,5]
[391795285,1760832640392,-500.0,0.00032473,5]
[391795287,1760832640402,-500.0,0.00032473,5]
[391795289,1760832640411,-500.0,0.00032473,5]
[391795291,1760832640420,-502.10987087,0.00032473,5]
[391795293,1760832640430,-2500.0,0.00032474,7]
[391795295,1760832640439,-2500.0,0.00032474,7]
[391795297,1760832640448,-2500.0,0.00032474,7]
[391795299,1760832640459,-2500.0,0.00032474,7]
[391795301,1760832640469,-150.41,0.00032481,2]
[391795303,1760832640478,-2500.0,0.00032482,7]
[391795305,1760832640487,-2500.0,0.00032482,7]
[391795307,1760832640497,-2500.0,0.00032482,7]
[391795309,1760832640506,-2500.0,0.00032482,7]
[391795310,1760832640515,-365.86923646,0.0003249,2]
[391795311,1760832640524,-150.41,0.0003249,2]
[391795312,1760832640534,-2500.0,0.00032491,7]
[391795313,1760832640543,-2500.0,0.00032491,7]
[391795314,1760832640553,-2500.0,0.00032491,7]
[391795315,1760832640563,-2500.0,0.00032491,7]
[391795316,1760832640572,-150.0,0.00032499,2]
[391795317,1760832640582,-65960.31913381,0.000325,18]
[391795318,1760832640591,-109322.53113192,0.000325,4]
[391795319,1760832640603,-841.0,0.000325,4]
[391795320,1760832640614,-3430.27801453,0.000325,4]
[391795329,1760832646116,-547.13308798,0.0003185,5]
[391795331,1760832665840,195.0,0.0002775,120]
[391795332,1760832667002,2500.0,0.0002775,120]
[391795333,1760832724335,195.0,0.0002775,120]
[391795334,1760832784891,20000.0,0.00025,120]
[391795335,1760832891056,-191.09251924,0.00014,2]
[391795336,1760832892557,-181.53607269,0.00014,2]
[391795337,1760832895714,-436.42247032,0.00014,2]
[391795338,1760832897813,-500.0,0.00014,2]
[391795339,1760832901248,-292.07579649,0.00013999,2]
[391795340,1760832902817,-7.92420351,0.00013999,2]
[391795341,1760832902844,-384.54421579,0.00013999,2]
[391795342,1760832904838,-183.71229,0.00013999,2]
[391795343,1760832906444,-204.03127952,0.00013999,2]
[391795344,1760832908554,-210.93421458,0.00013999,2]
[391795345,1760832910647,-193.75332263,0.00013999,2]
[391795346,1760832912179,-23.02467748,0.00013999,2]
[391795347,1760832912202,-300.0,0.00013999,2]
[391795348,1760832912226,-300.0,0.00013999,2]
[391795349,1760832912247,-352.63293481,0.00014,2]
[391795350,1760832913715,-284.66289255,0.00014,2]
[391795351,1760832915700,-224.77044198,0.00014,2]
[391795352,1760832918346,-205.48798767,0.00014,2]
[391795353,1760832965332,-208.91527485,0.00014,2]
[391795354,1760832966837,-427.4339201,0.00014,2]
[391795355,1760832968999,-193.49040346,0.00014,2]
[391795356,1760832970600,-158.20263632,0.00014,2]
[391795357,1760832974891,-220.90292361,0.00014,2]
[391795358,1760832976333,-195.0,0.00014,2]
[391795359,1760832995288,-329.83237689,0.00013,2]
[391795360,1760832998686,-430.17219954,0.00013,2]
[391795361,1760833000169,-298.10736603,0.00013,2]
[391795362,1760833001753,-379.02341597,0.00013,2]
[391795363,1760833004520,-383.95034293,0.00013,2]
[391795364,1760833006177,-487.36574661,0.00013,2]
[391795365,1760833010857,-330.48340147,0.00013,2]
[391795366,1760833013708,-245.05071539,0.00013,2]
[391795367,1760833015430,-116.01443517,0.00013,2]
[391795368,1760833015456,-184.75224072,0.00013,2]
[391795369,1760833017039,-157.91309406,0.00013,2]
[391795370,1760833020389,-245.70097785,0.00013,2]
[391795371,1760833023491,-185.32031009,0.00013,2]
[391795372,1760833030750,-232.04779349,0.00013,2]
[391795373,1760833032440,-156.16058449,0.00013,2]
[391795374,1760833033651,560.0,0.00012,2]
[391795375,1760833033678,19440.0,0.00012,2]
[391795376,1760833037031,-409.38578089,0.00013,2]
[391795377,1760833039134,-166.66,0.00013,2]
[391795378,1760833043943,20560.0,0.00012,2]
[391795379,1760833043975,11874.15984096,0.00012,2]
[391795380,1760833044585,-300.0,0.00014,2]
[391795381,1760833044608,-117.85459193,0.00014,2]
[391795382,1760833066103,50000.0,0.00012,2]
[391795383,1760833236582,732.15091961,0.00032851,30]
[391795384,1760833296441,-219.85421918,0.00013694,2]
[391795385,1760833298561,-151.60749575,0.00013694,2]
[391795386,1760833300718,-161.13120818,0.00013694,2]
[391795387,1760833400314,-82.5792007,0.00013694,2]
[391795388,1760833400340,-211.98818924,0.00013922,2]
[391795389,1760833535976,7541.00963588,9e-05,2]
[391795390,1760833561300,7908.48899128,8e-05,2]
[391795391,1760833592939,-88.01181076,0.00013922,2]
[391795392,1760833594173,-181.61206179,0.00014168,2]
[391795393,1760833610526,-13.38793821,0.00014168,2]
[391795394,1760833610550,-236.61206179,0.00014414,2]
[391795395,1760833613105,-241.75670472,0.00014414,2]
[391795396,1760833615172,-382.71407976,0.00014414,2]
[391795397,1760833618496,-229.91715373,0.00014414,2]
[391795398,1760833618520,-28.21128919,0.00014444,2]
[391795399,1760833621267,-245.06026282,0.00014444,2]
[391795400,1760833623453,326.18,0.00013526,2]
[391795401,1760833627496,-171.62296476,0.00014238,2]
[391795454,1760833633249,54.68894664,9.8e-05,2]
[391795455,1760833633288,150.31105336,9.8e-05,2]
[391795456,1760833637334,257.10787054,0.000101,2]
[391795457,1760833644165,1018.7,0.00027017,120]
[391795458,1760833671456,-197.56690057,0.00013626,2]
[391795459,1760833673892,-290.92443084,0.00013626,2]
[391795460,1760833677279,-167.60418897,0.00013626,2]
[391795461,1760833678817,-208.79,0.00013626,2]
[391795462,1760833682678,-350.0792112,0.00013626,2]
[391795463,1760833700398,-166.66,0.00013626,2]
[391795474,1760833722603,161.2904995,0.00012,2]
[391795475,1760833760413,-274.37636119,0.00013586,2]
[391795476,1760833762967,-152.52281191,0.00013586,2]
[391795477,1760833766137,-304.59301344,0.00013586,2]
[391795478,1760833767725,-262.55680876,0.00013586,2]
[391795479,1760833772719,-333.34,0.00013586,2]
[391795480,1760833774734,-300.0,0.00013586,2]
[391795483,1760833790289,-176.98658232,0.00013586,2]
[391795484,1760833791878,-178.9044041,0.00013586,2]
[391795485,1760833793979,-253.47309563,0.00013586,2]
[391795486,1760833796674,-353.86363881,0.00013586,2]
[391795487,1760833800569,-221.75770419,0.00013586,2]
[391795491,1760833803886,-341.32179293,0.00013586,2]
[391795493,1760833820353,-170.40639918,0.00013586,2]
[391795494,1760833822875,-372.79934136,0.00013586,2]
[391795495,1760833825020,-215.86258775,0.00013586,2]
[391795496,1760833826553,-301.2621063,0.00013586,2]
[391795497,1760833828597,-300.0,0.00013586,2]
[391795520,1760833832039,-257.18777651,0.00013585,2]
[391795521,1760833832143,-242.81222349,0.00013585,2]
[391795522,1760833832152,-47.11931876,0.00013585,2]
[391795523,1760833832243,-452.88068124,0.00013585,2]
[391795524,1760833832256,-500.0,0.00013585,2]
[391795525,1760833832266,-500.0,0.00013585,2]
[391795526,1760833832276,-500.0,0.00013585,2]
[391795527,1760833832289,-500.0,0.00013585,2]
[391795528,1760833832301,-500.0,0.00013585,2]
[391795529,1760833832314,-500.0,0.00013585,2]
[391795530,1760833832324,-500.0,0.00013585,2]
[391795531,1760833832333,-500.0,0.00013585,2]
[391795532,1760833832344,-500.0,0.00013585,2]
[391795533,1760833832354,-325.99360357,0.00013585,2]
[391795534,1760833832363,-500.0,0.00013585,2]
[391795535,1760833832372,-500.0,0.00013585,2]
[391795536,1760833832382,-500.0,0.00013585,2]
[391795537,1760833832391,-500.0,0.00013585,2]
[391795538,1760833832401,-500.0,0.00013585,2]
[391795540,1760833832410,-500.0,0.00013585,2]
[391795541,1760833832419,-500.0,0.00013585,2]
[391795542,1760833832428,-5157.78531966,0.00013586,2]
[391795554,1760833837940,-500.0,0.00013585,2]
[391795555,1760833837949,-231.00113655,0.00013585,2]
[391795633,1760833839998,-268.99886345,0.00013585,2]
[391795634,1760833840008,-500.0,0.00013585,2]
[391795635,1760833840019,-500.0,0.00013585,2]
[391795636,1760833840028,-500.0,0.00013585,2]
[391795637,1760833840037,-500.0,0.00013585,2]
[391795638,1760833840046,-500.0,0.00013585,2]
[391795639,1760833840056,-500.0,0.00013585,2]
[391795640,1760833840065,-364.23474764,0.00013585,2]
[391795641,1760833840075,-54396.37792137,0.00013586,2]
[391795642,1760833840085,-269.28005872,0.00013626,2]
[391795643,1760833840094,-259.25,0.00013699,2]
[391795644,1760833840111,-154.55703524,0.00014238,2]
[391795645,1760833840124,-195.0,0.00014525,2]
[391795646,1760833840135,-234.55312377,0.00014737,2]
[391795647,1760833840144,-167.97270581,0.00014873,2]
[391795648,1760833840154,-217.8742287,0.000149,2]
[391795649,1760833840164,-165.76687382,0.000149,2]
[391795650,1760833840174,-11700.98238504,0.000149,2]
[391795651,1760833840185,-326.72844799,0.00014945,2]
[391795652,1760833840195,-332.14540807,0.00014945,2]
[391795653,1760833840206,-326.18,0.0001495,2]
[391795654,1760833840217,-5589.35629915,0.00014963,2]
[391795655,1760833840228,-500.0,0.00014973,2]
[391795656,1760833840239,-521.56570684,0.00014973,2]
[391795657,1760833840249,-500.0,0.00014973,2]
[391795658,1760833840259,-500.0,0.00014973,2]
[391795659,1760833840269,-150.0,0.00014989,2]
[391795660,1760833840279,-365.86923646,0.0001499,2]
[391795661,1760833840289,-151.0,0.00014991,2]
[391795662,1760833840302,-189.1625085,0.00014999,2]
[391795663,1760833840311,-150.13050866,0.00014999,2]
[391795664,1760833840320,-500.0,0.00014999,2]
[391795665,1760833840330,-229.40423531,0.00014999,2]
[391795666,1760833840342,-500.0,0.00014999,2]
[391795667,1760833840351,-50000.0,0.00015,2]
[391795668,1760833840360,-160.0,0.00015,2]
[391795669,1760833840371,-57262.72017007,0.00015,2]
[391795671,1760833840384,-3527.39032816,0.00015,2]
[391795673,1760833841273,-1.6e-07,0.00015,2]
[391795674,1760833841287,-116939.91561913,0.00015,2]
[391795675,1760833841298,-376733.34980789,0.00015,2]
[391795676,1760833841309,-103112.6127493,0.00015,2]
[391795680,1760833845993,-1231.9157308,0.00015,2]
[391795681,1760833846154,-430.63500019,0.00015,2]
[391795684,1760833895983,-171.46007769,0.00013585,2]
[391795685,1760833900764,-217.02513888,0.00013585,2]
[391795686,1760833902338,-111.51478343,0.00013585,2]
[391795687,1760833902361,-195.37895803,0.00013585,2]
[391795688,1760833904425,-304.62104197,0.00013585,2]
[391795689,1760833904452,-139.16260929,0.00013585,2]
[391795690,1760833906668,-158.69671284,0.00013585,2]
[391795691,1760833909321,-202.14067787,0.00013585,2]
[391795692,1760833909353,-136.39328121,0.00013585,2]
[391795693,1760833925438,-166.66,0.00013585,2]
[391795694,1760833926877,-196.94671879,0.00013585,2]
[391795695,1760833926902,-225.0563808,0.00013585,2]
[391795696,1760833928446,-163.1454749,0.00013585,2]
[391795697,1760833931983,-111.7981443,0.00013585,2]
[391795698,1760833932008,-368.2018557,0.00013585,2]
[391795699,1760833933502,-131.7981443,0.00013585,2]
[391795700,1760833933534,-72.7018557,0.00013585,2]
[391795701,1760833936627,-277.57834291,0.00013585,2]
[391795702,1760833938146,-149.71980139,0.00013585,2]
[391795703,1760833938179,-121.05244177,0.00013585,2]
[391795704,1760833940410,-378.94755823,0.00013585,2]
[391795705,1760833940439,-72.49007947,0.00013585,2]
[391795706,1760833942247,-198.32822773,0.00013585,2]
[391795707,1760833943704,-94.92515832,0.00013585,2]
[391795708,1760833943730,-57.49211388,0.00013585,2]
[391795709,1760833946597,-281.31230713,0.00013585,2]
[391795710,1760834114984,720.743856,0.00032849,120]
[391795712,1760834340682,720.743856,0.00032838,120]
[391795713,1760834476698,720.743856,0.00032838,120]
[391795714,1760834563466,720.743856,0.00032838,120]
[391795715,1760834564562,720.743856,0.00032838,120]
[391795716,1760834565043,720.743856,0.00032838,120]
[391795717,1760834569429,720.743856,0.00032838,120]
[391795718,1760834569987,720.743856,0.00032838,120]
[391795719,1760834570923,720.743856,0.00032838,120]
[391795720,1760834571364,720.743856,0.00032838,120]
[391795721,1760834578040,720.743856,0.00032855,120]
[391795722,1760834578426,720.743856,0.00032855,120]
[391795723,1760834580313,720.743856,0.00032855,120]
[391795724,1760834581403,720.743856,0.00032855,120]
[391795725,1760834582710,720.743856,0.00032855,120]
[391795726,1760834585114,720.743856,0.00032855,120]
[391795727,1760834586267,720.743856,0.00032855,120]
[391795728,1760834587262,720.743856,0.00032855,120]
[391795729,1760834587661,720.743856,0.00032855,120]
[391795730,1760834588051,720.743856,0.00032855,120]
[391795731,1760834588570,720.743856,0.00032855,120]
[391795732,1760834588977,720.743856,0.00032855,120]
[391795733,1760834589479,720.743856,0.00032855,120]
[391795734,1760834589928,720.743856,0.00032855,120]
[391795802,1760834972719,-1000.0,0.000147,2]
[391795803,1760835024845,1112.07005,0.000287,120]
[391795813,1760835032119,-518.345,0.000147,2]
[391795814,1760835032130,-890.24381675,0.00014777,2]
[391795815,1760835032140,-1576.96291537,0.0001485,2]
[391795816,1760835032150,-164.26443432,0.00014899,2]
[391795817,1760835032172,-315.73556568,0.00014899,2]
[391795818,1760835032182,-300.0,0.00014899,2]
[391795819,1760835032192,-1200.0,0.00014899,2]
[391795820,1760835032203,-178.62851371,0.000149,2]
[391795821,1760835032213,-5030.42066928,0.000149,2]
[391795822,1760835032223,-174.80622087,0.000149,2]
[391795823,1760835032233,-190.63995013,0.000149,2]
[391795824,1760835032243,-10622.6269835,0.000149,2]
[391795825,1760835032257,-500.0,0.00014973,2]
[391795826,1760835032267,-500.0,0.00014973,2]
[391795827,1760835032277,-500.0,0.00014973,2]
[391795828,1760835032288,-500.0,0.00014973,2]
[391795829,1760835032298,-500.0,0.00014973,2]
[391795830,1760835032309,-500.0,0.00014973,2]
[391795831,1760835032320,-500.0,0.00014973,2]
[391795832,1760835032331,-500.0,0.00014973,2]
[391795833,1760835032342,-500.0,0.00014973,2]
[391795834,1760835032352,-500.0,0.00014973,2]
[391795835,1760835032362,-500.0,0.00014973,2]
[391795836,1760835032372,-500.0,0.00014973,2]